fUST/lending_fUST_20260222
["ID","MTS","AMOUNT","RATE_DAILY","PERIOD"]
[406330511,1771748928851,-353.585664,0.00038356,120]
[406330512,1771748928891,-353.585664,0.00038356,120]
[406330513,1771748928928,-353.585664,0.00038356,120]
[406330514,1771748928964,-353.585664,0.00038356,120]
[406330515,1771748929000,-353.585664,0.00038356,120]
[406330516,1771748929037,-353.585664,0.00038356,120]
[406330517,1771748929076,-353.585664,0.00038356,120]
[406330518,1771748929113,-353.585664,0.00038356,120]
[406330519,1771748929150,-353.585664,0.00038356,120]
[406330520,1771748929188,-353.585664,0.00038356,120]
[406330521,1771748929226,-353.585664,0.00038356,120]
[406330522,1771748929265,-353.585664,0.00038356,120]
[406330523,1771748929302,-353.585664,0.00038356,120]
[406330524,1771748929340,-353.585664,0.00038356,120]
[406330525,1771748929379,-353.585664,0.00038356,120]
[406330526,1771748929416,-353.585664,0.00038356,120]
[406330527,1771748929459,-353.585664,0.00038356,120]
[406330528,1771748929498,-151.0,0.00038356,120]
[406330529,1771748929537,-353.585664,0.00038356,120]
[406330530,1771748929575,-151.0,0.00038356,120]
[406330531,1771748929614,-353.585664,0.00038356,120]
[406330532,1771748929672,-151.0,0.00038356,120]
[406330533,1771748929716,-353.585667,0.00038356,120]
[406330534,1771748929757,-151.0,0.00038356,120]
[406330535,1771748929799,-151.0,0.00038356,120]
[406330536,1771748929841,-151.0,0.00038356,120]
[406330537,1771748929883,-264.723315,0.00038356,120]
[406330538,1771748929922,-151.0,0.00038356,120]
[406330539,1771748929960,-151.0,0.00038356,120]
[406330540,1771748929999,-151.0,0.00038356,120]
[406330541,1771748930036,-151.0,0.00038356,120]
[406330542,1771748930072,-151.0,0.00038356,120]
[406330543,1771748930108,-151.0,0.00038356,120]
[406330544,1771748930145,-151.0,0.00038356,120]
[406330545,1771748930182,-151.0,0.00038356,120]
[406330546,1771748930222,-151.0,0.00038356,120]
[406330547,1771748930260,-151.0,0.00038356,120]
[406330548,1771748930300,-151.0,0.00038356,120]
[406330549,1771748930341,-151.0,0.00038356,120]
[406330550,1771748930381,-151.0,0.00038356,120]
[406330551,1771748930524,-151.0,0.00038356,120]
[406330552,1771748930566,-151.0,0.00038356,120]
[406330553,1771748930607,-275.000807,0.00038356,120]
[406330554,1771748930646,-151.0,0.00038356,120]
[406330555,1771748930684,-151.0,0.00038356,120]
[406330556,1771748930722,-151.0,0.00038356,120]
[406330557,1771748930765,-151.0,0.00038356,120]
[406330558,1771748930813,-151.0,0.00038356,120]
[406330559,1771748930850,-151.0,0.00038356,120]
[406330560,1771748930886,-151.0,0.00038356,120]
[406330561,1771748930923,-151.0,0.00038356,120]
[406330562,1771748930963,-151.0,0.00038356,120]
[406330563,1771748930998,-151.0,0.00038356,120]
[406330564,1771748931034,-151.0,0.00038356,120]
[406330565,1771748931069,-151.0,0.00038356,120]
[406330566,1771748931106,-151.0,0.00038356,120]
[406330567,1771748931146,-151.0,0.00038356,120]
[406330568,1771748931182,-151.0,0.00038356,120]
[406330569,1771748931217,-151.0,0.00038356,120]
[406330570,1771748931254,-171.668357,0.00038356,120]
[406330571,1771748931293,-151.0,0.00038356,120]
[406330572,1771748931333,-151.0,0.00038356,120]
[406330573,1771748931375,-151.0,0.00038356,120]
[406330574,1771748931414,-151.0,0.00038356,120]
[406330575,1771748931450,-151.0,0.00038356,120]
[406330576,1771748931489,-151.0,0.00038356,120]
[406330577,1771748931530,-151.0,0.00038356,120]
[406330578,1771748931566,-193.6142,0.00038356,120]
[406330579,1771748931604,-151.0,0.00038356,120]
[406330580,1771748931643,-151.0,0.00038356,120]
[406330581,1771748931679,-151.0,0.00038356,120]
[406330582,1771748931716,-220.342888,0.00038356,120]
[406330583,1771748931752,-151.0,0.00038356,120]
[406330584,1771748931788,-151.0,0.00038356,120]
[406330585,1771748931823,-151.0,0.00038356,120]
[406330586,1771748931860,-151.0,0.00038356,120]
[406330587,1771748931901,-261.493655,0.00038356,120]
[406330588,1771748931939,-585.911456,0.00038356,120]
[406330589,1771748931977,-585.911456,0.00038356,120]
[406330590,1771748932016,-585.911456,0.00038356,120]
[406330591,1771748932055,-585.911456,0.00038356,120]
[406330592,1771748932092,-585.911456,0.00038356,120]
[406330593,1771748932131,-585.911456,0.00038356,120]
[406330594,1771748932237,-585.911456,0.00038356,120]
[406330595,1771748932278,-151.0,0.00038356,120]
[406330596,1771748932319,-585.911456,0.00038356,120]
[406330597,1771748932358,-151.0,0.00038356,120]
[406330598,1771748932396,-585.911456,0.00038356,120]
[406330599,1771748932433,-151.0,0.00038356,120]
[406330600,1771748932471,-585.911456,0.00038356,120]
[406330601,1771748932508,-151.0,0.00038356,120]
[406330602,1771748932546,-585.911456,0.00038356,120]
[406330603,1771748932584,-151.0,0.00038356,120]
[406330604,1771748932623,-585.911456,0.00038356,120]
[406330605,1771748932661,-151.0,0.00038356,120]
[406330606,1771748932699,-585.911456,0.00038356,120]
[406330607,1771748932735,-151.0,0.00038356,120]
[406330608,1771748932772,-585.911456,0.00038356,120]
[406330609,1771748932809,-234.703176,0.00038356,120]
[406330610,1771748932846,-585.911456,0.00038356,120]
[406330611,1771748932884,-585.911456,0.00038356,120]
[406330612,1771748932920,-585.911456,0.00038356,120]
[406330613,1771748932957,-585.911456,0.00038356,120]
[406330614,1771748932994,-308.644623,0.00038356,120]
[406330615,1771748933031,-585.911456,0.00038356,120]
[406330616,1771748933067,-308.644623,0.00038356,120]
[406330617,1771748933104,-585.911454,0.00038356,120]
[406330618,1771748933143,-308.644623,0.00038356,120]
[406330619,1771748933182,-308.644623,0.00038356,120]
[406330620,1771748933221,-308.644623,0.00038356,120]
[406330621,1771748933259,-308.644623,0.00038356,120]
[406330622,1771748933298,-308.644623,0.00038356,120]
[406330623,1771748933338,-308.644623,0.00038356,120]
[406330624,1771748933377,-308.644623,0.00038356,120]
[406330625,1771748933415,-308.644623,0.00038356,120]
[406330626,1771748933452,-308.644623,0.00038356,120]
[406330627,1771748933490,-308.644623,0.00038356,120]
[406330628,1771748933527,-308.644623,0.00038356,120]
[406330629,1771748933565,-308.644623,0.00038356,120]
[406330630,1771748933606,-308.644623,0.00038356,120]
[406330631,1771748933646,-308.644623,0.00038356,120]
[406330632,1771748933686,-308.644623,0.00038356,120]
[406330633,1771748933726,-308.644623,0.00038356,120]
[406330634,1771748933766,-308.644623,0.00038356,120]
[406330635,1771748933879,-308.644632,0.00038356,120]
[406330636,1771748933921,-151.0,0.00038356,120]
[406330637,1771748933962,-151.0,0.00038356,120]
[406330638,1771748934002,-151.0,0.00038356,120]
[406330639,1771748934043,-151.0,0.00038356,120]
[406330640,1771748934083,-151.0,0.00038356,120]
[406330641,1771748934122,-151.0,0.00038356,120]
[406330642,1771748934161,-151.0,0.00038356,120]
[406330643,1771748934200,-151.0,0.00038356,120]
[406330644,1771748934240,-151.0,0.00038356,120]
[406330645,1771748934279,-151.0,0.00038356,120]
[406330646,1771748934319,-151.0,0.00038356,120]
[406330647,1771748934358,-151.0,0.00038356,120]
[406330648,1771748934397,-151.0,0.00038356,120]
[406330649,1771748934436,-221.505867,0.00038356,120]
[406330650,1771748934475,-358.98549886,0.00038411,30]
[406330651,1771748934514,-25000.0,0.00038488,120]
[406330652,1771748934552,-16556.37,0.000385,51]
[406330653,1771748934594,-358.98549886,0.00038575,30]
[406330654,1771748934641,-154.72,0.00038741,60]
[406330655,1771748934678,-170.0,0.00038745,120]
[406330656,1771748934715,-358.98549886,0.00038767,30]
[406330657,1771748934754,-184.58175089,0.00038817,120]
[406330658,1771748934791,-1021.45425483,0.000389,120]
[406330659,1771748934832,-358.98549886,0.00038959,30]
[406330660,1771748934869,-25000.0,0.00038988,120]
[406330661,1771748934911,-400.0,0.00039,120]
[406330662,1771748934951,-319.93692737,0.00039,120]
[406330663,1771748934989,-160.0,0.00039,120]
[406330664,1771748935025,-160.0,0.00039,120]
[406330665,1771748935061,-200.0,0.00039,120]
[406330666,1771748935097,-200.0,0.00039,120]
[406330667,1771748935131,-200.0,0.00039,120]
[406330668,1771748935166,-4188.9278112,0.00039,120]
[406330669,1771748935202,-820.0,0.00039,60]
[406330670,1771748935238,-358.98549886,0.00039123,30]
[406330671,1771748935280,-1351.18,0.00039315,120]
[406330672,1771748935380,-358.98549886,0.00039315,30]
[406330673,1771748935423,-150.0,0.00039391,120]
[406330674,1771748935461,-200.0,0.000394,120]
[406330675,1771748935502,-411.726,0.000394,120]
[406330676,1771748935545,-25000.0,0.00039488,120]
[406330677,1771748935585,-358.98549886,0.00039507,30]
[406330678,1771748935626,-200.0,0.00039576,120]
[406330679,1771748935666,-200.0,0.00039612,120]
[406330680,1771748935705,-358.98549886,0.00039671,30]
[406330681,1771748935744,-570.9149,0.000397,120]
[406330682,1771748935782,-240.40752121,0.000397,120]
[406330683,1771748935820,-300.2999,0.000397,30]
[406330684,1771748935860,-200.0,0.00039701,120]
[406330685,1771748935903,-358.98549886,0.00039863,30]
[406330686,1771748935943,-400.0,0.0003989,30]
[406330687,1771748935980,-161.76208598,0.000399,30]
[406330688,1771748936016,-25000.0,0.00039988,120]
[406330689,1771748936052,-236.0,0.0004,120]
[406330690,1771748936088,-296.0,0.0004,120]
[406330691,1771748936125,-400.0,0.0004,120]
[406330692,1771748936165,-167.66895394,0.0004,120]
[406330693,1771748936201,-16380.48491129,0.0004,120]
[406330694,1771748936239,-230.94828689,0.0004,120]
[406330695,1771748936277,-160.0,0.0004,30]
[406330696,1771748936318,-1208.12,0.0004,30]
[406330697,1771748936360,-1562.5,0.0004,30]
[406330698,1771748936405,-212.16,0.0004,30]
[406330699,1771748936444,-1351.18,0.00040273,120]
[406330700,1771748936483,-1394.93,0.00040367,60]
[406330701,1771748936521,-1319.0632,0.00040368,30]
[406330702,1771748936559,-225.59208322,0.00040436,120]
[406330703,1771748936597,-200.0,0.00040485,120]
[406330704,1771748936634,-267.21603717,0.00040488,120]
[406330705,1771748936669,-224669.12,0.00040488,120]
[406330706,1771748936707,-200.0,0.00040561,120]
[406330707,1771748936744,-200.0,0.00040646,120]
[406330708,1771748936780,-253.0,0.0004068,47]
[406330709,1771748936815,-170.0,0.00040682,120]
[406330710,1771748936915,-394.0,0.000407,105]
[406330711,1771748936953,-200.0,0.00040799,120]
[406330712,1771748936992,-2000.0,0.000409,120]
[406330713,1771748937030,-546.01,0.00040993,120]
[406330714,1771748937067,-200.0,0.00041,80]
[406330715,1771748937105,-400.0,0.00041,120]
[406330716,1771748937148,-535.00593942,0.00041,120]
[406330717,1771748937186,-500.0,0.00041095,120]
[406330718,1771748937225,-190.04812943,0.00041095,120]
[406330719,1771748937265,-587.94670892,0.00041095,30]
[406330720,1771748937309,-454.55,0.00041096,120]
[406330721,1771748937348,-163.28,0.00041096,120]
[406330722,1771748937388,-182.42,0.00041096,120]
[406330723,1771748937426,-151.0,0.00041096,120]
[406330724,1771748937464,-151.0,0.00041096,120]
[406330725,1771748937503,-151.0,0.00041096,120]
[406330726,1771748937541,-151.0,0.00041096,120]
[406330727,1771748937578,-151.0,0.00041096,120]
[406330728,1771748937615,-151.0,0.00041096,120]
[406330729,1771748937655,-151.0,0.00041096,120]
[406330730,1771748937694,-151.0,0.00041096,120]
[406330731,1771748937736,-293.975206,0.00041096,120]
[406330732,1771748937774,-290.803917,0.00041096,120]
[406330733,1771748937812,-290.803917,0.00041096,120]
[406330734,1771748937851,-290.803917,0.00041096,120]
[406330735,1771748937891,-290.803917,0.00041096,120]
[406330736,1771748937930,-290.803917,0.00041096,120]
[406330737,1771748937969,-290.803917,0.00041096,120]
[406330738,1771748938007,-290.803917,0.00041096,120]
[406330739,1771748938047,-290.803917,0.00041096,120]
[406330740,1771748938091,-290.803917,0.00041096,120]
[406330741,1771748938130,-290.803917,0.00041096,120]
[406330742,1771748938168,-290.803917,0.00041096,120]
[406330743,1771748938209,-290.803917,0.00041096,120]
[406330744,1771748938249,-290.803917,0.00041096,120]
[406330745,1771748938292,-290.803917,0.00041096,120]
[406330746,1771748938334,-290.803917,0.00041096,120]
[406330747,1771748938435,-290.803917,0.00041096,120]
[406330748,1771748938474,-290.803917,0.00041096,120]
[406330749,1771748938516,-290.803917,0.00041096,120]
[406330750,1771748938556,-290.803917,0.00041096,120]
[406330751,1771748938600,-290.803924,0.00041096,120]
[406330752,1771748938640,-200.0,0.00041182,120]
[406330753,1771748938680,-200.0,0.00041182,120]
[406330754,1771748938718,-200.0,0.00041182,120]
[406330755,1771748938757,-200.0,0.00041182,120]
[406330756,1771748938795,-200.0,0.00041182,120]
[406330757,1771748938833,-246.24654197,0.00041182,120]
[406330758,1771748938869,-200.0,0.000412,120]
[406330759,1771748938910,-200.0,0.000412,120]
[406330760,1771748938948,-200.0,0.00041227,120]
[406330761,1771748938986,-1351.18,0.00041232,120]
[406330762,1771748939022,-200.0,0.000413,120]
[406330763,1771748939058,-199.61462148,0.000413,120]
[406330764,1771748939092,-411.726,0.000413,120]
[406330765,1771748939128,-176.75093167,0.000414,120]
[406330766,1771748939163,-168.11212607,0.000414,120]
[406330767,1771748939199,-183.11135405,0.000414,120]
[406330768,1771748939235,-236.98688579,0.000414,120]
[406330769,1771748939272,-199.61462148,0.000414,120]
[406330770,1771748939310,-186.87812441,0.000414,120]
[406330771,1771748939347,-236.58463799,0.000414,120]
[406330772,1771748939383,-220.72560671,0.000414,120]
[406330773,1771748939422,-299.96000002,0.000414,120]
[406330774,1771748939463,-175.506,0.0004147,61]
[406330775,1771748939502,-200.0,0.00041488,120]
[406330776,1771748939542,-200.0,0.00041488,120]
[406330777,1771748939582,-200.0,0.00041488,120]
[406330778,1771748939620,-157.53,0.00041488,30]
[406330779,1771748939659,-653.5,0.00041488,60]
[406330780,1771748939702,-154.72,0.00041489,60]
[406330781,1771748939743,-273.64954,0.000415,120]
[406330782,1771748939840,-345.918,0.00041529,30]
[406330783,1771748939883,-167.54383542,0.00041555,120]
[406330784,1771748939926,-546.01,0.00041591,120]
[406330785,1771748939967,-283.685611,0.000416,47]
[406330786,1771748940006,-332.87,0.00041917,30]
[406330787,1771748940045,-400.0,0.00042,120]
[406330788,1771748940084,-200.0,0.00042,120]
[406330789,1771748940123,-4000.0,0.00042,120]
[406330790,1771748940160,-283.62686074,0.00042,120]
[406330791,1771748940200,-212.16,0.00042,30]
[406330792,1771748940241,-1562.5,0.00042,30]
[406330793,1771748940287,-546.01,0.00042189,120]
[406330794,1771748940330,-1351.18,0.00042191,120]
[406330795,1771748940370,-1297.287,0.000423,90]
[406330796,1771748940411,-525.7499,0.000423,90]
[406330797,1771748940458,-176.75093167,0.000426,120]
[406330798,1771748940499,-168.11212607,0.000426,120]
[406330799,1771748940544,-183.11135405,0.000426,120]
[406330800,1771748940585,-151.0,0.00042601,33]
[406330801,1771748940626,-332.87,0.00042602,33]
[406330802,1771748940666,-200.0,0.00042692,120]
[406330803,1771748940709,-546.01,0.00042788,120]
[406330804,1771748940749,-400.0,0.00043,120]
[406330805,1771748940787,-1351.18,0.0004315,120]
[406330806,1771748940823,-48115.83630626,0.00043157,30]
[406330807,1771748940860,-200.0,0.000432,120]
[406330808,1771748940901,-411.726,0.000432,120]
[406330809,1771748940938,-151.0,0.00043286,36]
[406330810,1771748940976,-332.87,0.00043287,36]
[406330811,1771748941014,-935.05,0.00043352,60]
[406330812,1771748941050,-546.01,0.00043386,120]
[406330813,1771748941086,-200.0,0.000434,120]
[406330814,1771748941120,-200.0,0.000434,120]
[406330815,1771748941157,-202.62,0.00043612,120]
[406330816,1771748941252,-82107.97232552,0.000438,120]
[406330817,1771748941290,-172.81251012,0.000438,30]
[406330818,1771748941327,-151.0,0.00043834,80]
[406330819,1771748941367,-500.0,0.00043835,120]
[406330820,1771748941406,-500.0,0.00043835,80]
[406330821,1771748941445,-743.43,0.00043835,90]
[406330822,1771748941484,-2035.26,0.00043835,120]
[406330823,1771748941522,-500.0,0.00043835,120]
[406330824,1771748941560,-1461.32,0.00043835,120]
[406330825,1771748941602,-200.0,0.00043836,120]
[406330826,1771748941641,-504.6,0.00043836,120]
[406330827,1771748941680,-151.0,0.00043971,39]
[406330828,1771748941718,-332.87,0.00043972,39]
[406330829,1771748941756,-546.01,0.00043984,120]
[406330830,1771748941792,-400.0,0.00044,120]
[406330831,1771748941831,-200.0,0.00044,120]
[406330832,1771748941868,-214.62,0.00044,30]
[406330833,1771748941911,-212.16,0.000441,30]
[406330834,1771748941951,-1562.5,0.000441,30]
[406330835,1771748941987,-500.0,0.00044109,120]
[406330836,1771748942025,-743.43,0.00044109,90]
[406330837,1771748942065,-1351.18,0.00044109,120]
[406330838,1771748942103,-2035.26,0.00044109,120]
[406330839,1771748942139,-500.0,0.00044109,120]
[406330840,1771748942177,-1461.32,0.00044109,120]
[406330841,1771748942217,-500.0,0.00044383,120]
[406330842,1771748942255,-743.43,0.00044383,90]
[406330843,1771748942294,-2035.26,0.00044383,120]
[406330844,1771748942332,-625.99354006,0.00044383,120]
[406330845,1771748942371,-1461.32,0.00044383,120]
[406330846,1771748942410,-200.0,0.000445,120]
[406330847,1771748942450,-546.01,0.00044583,120]
[406330848,1771748942488,-151.0,0.00044656,42]
[406330849,1771748942527,-151.0,0.00044656,42]
[406330850,1771748942626,-332.87,0.00044657,42]
[406330851,1771748942665,-164.96368228,0.00044657,120]
[406330852,1771748942702,-500.0,0.00044657,85]
[406330853,1771748942740,-743.43481305,0.00044657,90]
[406330854,1771748942782,-2035.48522364,0.00044657,120]
[406330855,1771748942821,-1461.42916855,0.00044657,120]
[406330856,1771748942861,-1440.72,0.000448,90]
[406330857,1771748942901,-200.0,0.0004489,120]
[406330858,1771748942940,-187.71,0.00044898,30]
[406330859,1771748942980,-2000.0,0.000449,120]
[406330860,1771748943018,-200.0,0.00044995,120]
[406330861,1771748943056,-400.0,0.00045,120]
[406330862,1771748943095,-1369.0,0.00045,60]
[406330863,1771748943132,-976.78596654,0.00045,120]
[406330864,1771748943170,-462.59213554,0.00045,30]
[406330865,1771748943208,-1339.2,0.00045,120]
[406330866,1771748943245,-242.48976014,0.00045,120]
[406330867,1771748943285,-236.39,0.00045016,30]
[406330868,1771748943325,-1351.18,0.00045068,120]
[406330869,1771748943364,-385.47497,0.000451,120]
[406330870,1771748943404,-411.726,0.000451,120]
[406330871,1771748943446,-546.01,0.00045181,120]
[406330872,1771748943486,-151.0,0.00045341,45]
[406330873,1771748943524,-151.0,0.00045341,45]
[406330874,1771748943564,-332.87,0.00045342,45]
[406330875,1771748943605,-200.0,0.0004537,120]
[406330876,1771748943644,-200.0,0.0004539,120]
[406330877,1771748943685,-241.18283196,0.000454,120]
[406330878,1771748943725,-465.60945234,0.00045479,90]
[406330879,1771748943764,-200.0,0.000456,120]
[406330880,1771748943802,-250.2551,0.000456,120]
[406330881,1771748943843,-546.01,0.00045779,120]
[406330882,1771748943885,-400.0,0.00046,120]
[406330883,1771748943985,-200.0,0.00046,120]
[406330884,1771748944024,-298.21085707,0.00046,30]
[406330885,1771748944063,-151.0,0.00046026,48]
[406330886,1771748944102,-151.0,0.00046026,48]
[406330887,1771748944141,-332.87,0.00046027,48]
[406330888,1771748944184,-1351.18,0.00046027,120]
[406330889,1771748944224,-212.16,0.00046305,30]
[406330890,1771748944263,-1562.5,0.00046305,30]
[406330891,1771748944303,-546.01,0.00046377,120]
[406330892,1771748944342,-1333.24350032,0.00046466,120]
[406330893,1771748944381,-200.0,0.000465,120]
[406330894,1771748944419,-626.78,0.00046557,60]
[406330895,1771748944457,-151.0,0.00046711,51]
[406330896,1771748944496,-151.0,0.00046711,51]
[406330897,1771748944537,-332.87,0.00046712,51]
[406330898,1771748944577,-200.0,0.00046956,120]
[406330899,1771748944620,-546.01,0.00046976,120]
[406330900,1771748944662,-1351.18,0.00046986,120]
[406330901,1771748944701,-1500.0,0.00047,80]
[406330902,1771748944741,-400.0,0.00047,120]
[406330903,1771748944783,-411.726,0.00047,120]
[406330904,1771748944823,-151.0,0.00047396,54]
[406330905,1771748944866,-151.0,0.00047396,54]
[406330906,1771748944913,-332.87,0.00047397,54]
[406330907,1771748944957,-546.01,0.00047574,120]
[406330908,1771748944999,-436.67865672,0.0004777,77]
[406330909,1771748945044,-200.0,0.000478,120]
[406330910,1771748945086,-303.93,0.00047832,120]
[406330911,1771748945127,-370.33230486,0.00047945,120]
[406330912,1771748945168,-1351.18,0.00047945,120]
[406330913,1771748945208,-1500.0,0.00048,50]
[406330914,1771748945302,-1500.0,0.00048,50]
[406330915,1771748945349,-1500.0,0.00048,90]
[406330916,1771748945392,-400.0,0.00048,120]
[406330917,1771748945434,-200.0,0.00048,120]
[406330918,1771748945475,-160.0,0.00048,120]
[406330919,1771748945516,-160.0,0.00048,120]
[406330920,1771748945558,-200.0,0.00048026,120]
[406330921,1771748945599,-151.0,0.00048081,57]
[406330922,1771748945639,-151.0,0.00048081,57]
[406330923,1771748945680,-332.87,0.00048082,57]
[406330924,1771748945722,-200.0,0.00048116,120]
[406330925,1771748945763,-546.01,0.00048172,120]
[406330926,1771748945802,-332.87,0.00048767,60]
[406330927,1771748945843,-546.01,0.00048771,120]
[406330928,1771748945885,-411.72606,0.000489,120]
[406330929,1771748945924,-2000.0,0.000489,120]
[406330930,1771748945982,-1351.18,0.00048904,120]
[406330931,1771748946052,-5000.0,0.00049,120]
[406330932,1771748946115,-500.0,0.00049,120]
[406330933,1771748946182,-400.0,0.00049,120]
[406330934,1771748946242,-562.0,0.00049,120]
[406330935,1771748946305,-230.85,0.0004926,120]
[406330936,1771748946361,-318.57,0.00049315,120]
[406330937,1771748946415,-284.18577146,0.00049315,120]
[406330938,1771748946470,-546.01,0.00049369,120]
[406330939,1771748946526,-200.0,0.00049419,120]
[406330940,1771748946583,-200.0,0.00049419,120]
[406330941,1771748946638,-200.0,0.00049419,120]
[406330942,1771748946694,-200.0,0.00049419,120]
[406330943,1771748946749,-200.0,0.00049419,120]
[406330944,1771748946805,-200.0,0.00049419,120]
[406330945,1771748946938,-151.0,0.00049451,63]
[406330946,1771748946980,-332.87,0.00049452,63]
[406330947,1771748947017,-6000.0,0.000495,120]
[406330948,1771748947054,-2123.41626261,0.00049513,120]
[406330949,1771748947091,-1712.48,0.00049786,60]
[406330950,1771748947129,-472.77,0.0004984,30]
[406330951,1771748947167,-383.0,0.00049863,120]
[406330952,1771748947204,-1351.18,0.00049863,120]
[406330953,1771748947242,-10067.059934,0.0004987,120]
[406330954,1771748947280,-360.14,0.000499,90]
[406330955,1771748947318,-200.0,0.000499,120]
[406330956,1771748947355,-400.23296804,0.000499,30]
[406330957,1771748947394,-546.01,0.00049967,120]
[406330958,1771748947436,-400.0,0.0004998,120]
[406330959,1771748947475,-400.0,0.0004998,30]
[406330960,1771748947514,-1202.2431093,0.0004998,120]
[406330961,1771748947553,-315.07661425,0.0004999,120]
[406330962,1771748947593,-250.0,0.00049999,60]
[406330963,1771748947634,-500.0,0.00049999,60]
[406330964,1771748947672,-275.20540423,0.00049999,60]
[406330965,1771748947710,-250.0,0.00049999,90]
[406330966,1771748947751,-533.88981491,0.00049999,60]
[406330967,1771748947789,-500.0,0.00049999,90]
[406330968,1771748947828,-227.33411873,0.00049999,90]
[406330969,1771748947867,-500.0,0.00049999,60]
[406330970,1771748947909,-500.0,0.00049999,60]
[406330971,1771748947949,-500.0,0.00049999,90]
[406330972,1771748947994,-194.72792766,0.00049999,60]
[406330973,1771748948034,-201.93286099,0.00049999,90]
[406330974,1771748948074,-500.0,0.00049999,90]
[406330975,1771748948115,-250.0,0.00049999,60]
[406330976,1771748948154,-250.0,0.00049999,90]
[406330977,1771748948194,-194.72792766,0.00049999,60]
[406330978,1771748948233,-201.932861,0.00049999,90]
[406330979,1771748948274,-250.0,0.00049999,60]
[406330980,1771748948315,-151.0,0.00049999,60]
[406330981,1771748948356,-500.0,0.00049999,60]
[406330982,1771748948396,-250.0,0.00049999,90]
[406330983,1771748948436,-151.0,0.00049999,90]
[406330984,1771748948478,-500.0,0.00049999,90]
[406330985,1771748948591,-1000.0,0.00049999,60]
[406330986,1771748948635,-1000.0,0.00049999,90]
[406330987,1771748948679,-151.0,0.00049999,60]
[406330988,1771748948720,-1000.0,0.00049999,60]
[406330989,1771748948761,-1000.0,0.00049999,90]
[406330990,1771748948801,-10000.0,0.0005,120]
[406330991,1771748948843,-478.79109174,0.0005,120]
[406330992,1771748948884,-1170.0,0.0005,120]
[406330993,1771748948925,-500.0,0.0005,120]
[406330994,1771748948964,-165.232,0.0005,30]
[406330995,1771748949005,-200.0,0.0005,120]
[406330996,1771748949043,-1000.0,0.0005,120]
[406330997,1771748949085,-1254.94930428,0.0005,120]
[406330998,1771748949125,-200.0,0.0005,120]
[406330999,1771748949166,-156.0,0.0005,120]
[406331000,1771748949205,-254.04272677,0.0005,120]
[406331001,1771748949247,-175.66756305,0.0005,120]
[406331002,1771748949288,-504.34586545,0.0005,120]
[406331003,1771748949328,-253.32228068,0.0005,120]
[406331004,1771748949369,-279.06,0.0005,120]
[406331005,1771748949413,-845.41948752,0.0005,120]
[406331006,1771748949453,-200.0,0.0005,120]
[406331007,1771748949494,-420.15,0.0005,60]
[406331008,1771748949536,-1035.25268653,0.0005,60]
[406331009,1771748949577,-250.0,0.00050135,66]
[406331010,1771748949619,-500.0,0.00050135,66]